[Event "Late-Titled-Tuesday-Blitz-January-23-2024"]
[Site "Chess.com"]
[Date "2024.01.23"]
[Round "1"]
[White "TanitoluwaAps116"]
[Black "jup1978"]
[Result "1-0"]
[WhiteElo "2726"]
[BlackElo "2403"]
[TimeControl "180+1"]
[EndTime "14:06:43 PST"]
[Termination "TanitoluwaAps116 won by resignation"]

1. e4 {[%clk 0:02:51.6]} 1... e5 {[%clk 0:02:59.9]} 2. Nf3 {[%clk 0:02:47.9]}
2... Nf6 {[%clk 0:02:59.8]} 3. Nc3 {[%clk 0:02:44.8]} 3... Nc6 {[%clk
0:02:59.1]} 4. Bb5 {[%clk 0:02:44]} 4... Bc5 {[%clk 0:02:57.1]} 5. Bxc6 {[%clk
0:02:42.3]} 5... dxc6 {[%clk 0:02:56]} 6. d3 {[%clk 0:02:42.5]} 6... h6 {[%clk
0:02:53]} 7. O-O {[%clk 0:02:28.8]} 7... Bd6 {[%clk 0:02:46]} 8. h3 {[%clk
0:02:25.2]} 8... Be6 {[%clk 0:02:29.5]} 9. Be3 {[%clk 0:02:24.5]} 9... c5 {[%clk
0:02:26.5]} 10. Nd2 {[%clk 0:02:23.9]} 10... Qd7 {[%clk 0:02:24.8]} 11. Nc4
{[%clk 0:02:19.6]} 11... O-O-O {[%clk 0:02:19.9]} 12. a4 {[%clk 0:02:15.7]}
12... g5 {[%clk 0:02:17.4]} 13. a5 {[%clk 0:02:07.5]} 13... a6 {[%clk
0:02:14.9]} 14. Qf3 {[%clk 0:02:03.2]} 14... Qe7 {[%clk 0:02:01.5]} 15. Qe2
{[%clk 0:01:42.5]} 15... Rdg8 {[%clk 0:01:49.6]} 16. b4 {[%clk 0:01:34.6]} 16...
cxb4 {[%clk 0:01:46.9]} 17. Nxd6+ {[%clk 0:01:34.2]} 17... Qxd6 {[%clk
0:01:45.9]} 18. Na4 {[%clk 0:01:33.7]} 18... g4 {[%clk 0:01:43.2]} 19. h4 {[%clk
0:01:32.2]} 19... g3 {[%clk 0:01:42.3]} 20. f4 {[%clk 0:01:29.7]} 20... Bg4
{[%clk 0:01:28.4]} 21. Qe1 {[%clk 0:01:24.7]} 21... Nh5 {[%clk 0:01:15.1]} 22.
fxe5 {[%clk 0:01:15.8]} 22... Qxe5 {[%clk 0:01:14.3]} 23. Nc5 {[%clk 0:01:12.8]}
23... Qc3 {[%clk 0:00:58.4]} 24. Qxc3 {[%clk 0:01:08.4]} 24... bxc3 {[%clk
0:00:59.3]} 25. Rxf7 {[%clk 0:01:06.9]} 25... Rg7 {[%clk 0:00:40.2]} 26. Rxg7
{[%clk 0:01:03.6]} 26... Nxg7 {[%clk 0:00:41.1]} 27. Bd4 {[%clk 0:01:03.5]}
27... Rg8 {[%clk 0:00:40.9]} 28. Bxc3 {[%clk 0:00:57]} 28... Ne6 {[%clk
0:00:39.6]} 29. Nxe6 {[%clk 0:00:56.3]} 29... Bxe6 {[%clk 0:00:40.5]} 30. Rf1
{[%clk 0:00:55.6]} 30... Kd7 {[%clk 0:00:38.1]} 31. Rf6 {[%clk 0:00:52.7]} 31...
h5 {[%clk 0:00:36.6]} 32. Be5 {[%clk 0:00:52.5]} 32... Rg4 {[%clk 0:00:34.1]}
33. Rh6 {[%clk 0:00:49.3]} 33... c5 {[%clk 0:00:28.5]} 34. Rxh5 {[%clk
0:00:44.3]} 34... Rg6 {[%clk 0:00:24.3]} 35. Rh7+ {[%clk 0:00:44.2]} 35... Kc6
{[%clk 0:00:23.2]} 36. c4 {[%clk 0:00:44.9]} 36... Bd7 {[%clk 0:00:21.4]} 37. h5
{[%clk 0:00:43.5]} 37... Rg8 {[%clk 0:00:19.6]} 38. h6 {[%clk 0:00:40.8]} 38...
Rd8 {[%clk 0:00:17.5]} 39. Re7 {[%clk 0:00:36.6]} 39... Re8 {[%clk 0:00:17.1]}
40. Rxe8 {[%clk 0:00:36.5]} 40... Bxe8 {[%clk 0:00:18]} 41. h7 {[%clk 0:00:37]}
1-0

[Event "Late-Titled-Tuesday-Blitz-January-23-2024"]
[Site "Chess.com"]
[Date "2024.01.23"]
[Round "1"]
[White "chito89"]
[Black "Actuary44"]
[Result "1-0"]
[WhiteElo "2887"]
[BlackElo "2484"]
[TimeControl "180+1"]
[EndTime "14:06:45 PST"]
[Termination "chito89 won by resignation"]

1. e4 {[%clk 0:02:57.8]} 1... b6 {[%clk 0:02:59.9]} 2. d4 {[%clk 0:02:56.3]}
2... Bb7 {[%clk 0:03:00.4]} 3. Bd3 {[%clk 0:02:55.7]} 3... e6 {[%clk 0:03:00.9]}
4. Nf3 {[%clk 0:02:53.9]} 4... Nf6 {[%clk 0:03:01.6]} 5. Qe2 {[%clk 0:02:53.1]}
5... d5 {[%clk 0:03:02.1]} 6. exd5 {[%clk 0:02:52.8]} 6... Nxd5 {[%clk
0:03:02.4]} 7. a3 {[%clk 0:02:49.3]} 7... Be7 {[%clk 0:02:58.5]} 8. O-O {[%clk
0:02:47.9]} 8... h6 {[%clk 0:02:57.9]} 9. Re1 {[%clk 0:02:45.7]} 9... Nd7 {[%clk
0:02:57.5]} 10. c4 {[%clk 0:02:40.2]} 10... N5f6 {[%clk 0:02:57.3]} 11. Nc3
{[%clk 0:02:40.8]} 11... O-O {[%clk 0:02:56.5]} 12. b4 {[%clk 0:02:34.7]} 12...
Re8 {[%clk 0:02:48.1]} 13. Bb2 {[%clk 0:02:33.1]} 13... a5 {[%clk 0:02:41.5]}
14. b5 {[%clk 0:02:31.9]} 14... c5 {[%clk 0:02:37]} 15. bxc6 {[%clk 0:02:25.5]}
15... Bxc6 {[%clk 0:02:37.4]} 16. Rad1 {[%clk 0:02:22.4]} 16... Qc7 {[%clk
0:02:29.6]} 17. h3 {[%clk 0:02:19.2]} 17... Nh5 {[%clk 0:02:23.1]} 18. d5 {[%clk
0:02:06.7]} 18... exd5 {[%clk 0:02:20.6]} 19. cxd5 {[%clk 0:02:01.8]} 19... Nf4
{[%clk 0:02:06.5]} 20. Qd2 {[%clk 0:01:52.4]} 20... Nxd5 {[%clk 0:01:28.3]} 21.
Bb5 {[%clk 0:01:26.1]} 21... N5f6 {[%clk 0:01:15.7]} 22. Rc1 {[%clk 0:01:12.8]}
22... Bxf3 {[%clk 0:00:34.6]} 23. Nd5 {[%clk 0:01:06.8]} 23... Qxc1 {[%clk
0:00:13.4]} 24. Nxe7+ {[%clk 0:01:03.5]} 24... Rxe7 {[%clk 0:00:12.7]} 25. Rxc1
{[%clk 0:01:04.2]} 25... Bd5 {[%clk 0:00:08.8]} 26. Bxd7 {[%clk 0:00:52.8]}
26... Rxd7 {[%clk 0:00:09]} 27. Bxf6 {[%clk 0:00:53.3]} 27... gxf6 {[%clk
0:00:09.6]} 28. Qxh6 {[%clk 0:00:53.6]} 28... Re8 {[%clk 0:00:08.4]} 29. Rc3
{[%clk 0:00:49.2]} 29... Be4 {[%clk 0:00:07.4]} 30. Rg3+ {[%clk 0:00:47.2]}
30... Bg6 {[%clk 0:00:07.7]} 31. Rxg6+ {[%clk 0:00:47.7]} 31... fxg6 {[%clk
0:00:08.6]} 32. Qxg6+ {[%clk 0:00:48.2]} 32... Kf8 {[%clk 0:00:09.5]} 33. Qxf6+
{[%clk 0:00:48.7]} 33... Kg8 {[%clk 0:00:09.4]} 34. Qg6+ {[%clk 0:00:47.2]}
34... Kf8 {[%clk 0:00:09.4]} 35. Qxb6 {[%clk 0:00:48.1]} 35... Re5 {[%clk
0:00:07.7]} 36. Qf6+ {[%clk 0:00:47.2]} 1-0

[Event "Late-Titled-Tuesday-Blitz-January-23-2024"]
[Site "Chess.com"]
[Date "2024.01.23"]
[Round "1"]
[White "IngOscarArdila"]
[Black "Goryachkina"]
[Result "0-1"]
[WhiteElo "2387"]
[BlackElo "2695"]
[TimeControl "180+1"]
[EndTime "14:06:49 PST"]
[Termination "Goryachkina won by checkmate"]

1. d4 {[%clk 0:02:59.5]} 1... Nf6 {[%clk 0:02:59.7]} 2. c4 {[%clk 0:03:00]} 2...
e6 {[%clk 0:03:00]} 3. Nc3 {[%clk 0:03:00.2]} 3... Bb4 {[%clk 0:02:59.7]} 4. Qc2
{[%clk 0:03:00.5]} 4... d5 {[%clk 0:02:59.2]} 5. Bg5 {[%clk 0:03:00.2]} 5... h6
{[%clk 0:02:54.6]} 6. Bxf6 {[%clk 0:03:00]} 6... Qxf6 {[%clk 0:02:54.4]} 7. Nf3
{[%clk 0:02:57.4]} 7... O-O {[%clk 0:02:52.3]} 8. e3 {[%clk 0:02:57.5]} 8... Rd8
{[%clk 0:02:50.2]} 9. a3 {[%clk 0:02:57]} 9... Bf8 {[%clk 0:02:49.5]} 10. cxd5
{[%clk 0:02:56.3]} 10... exd5 {[%clk 0:02:49.4]} 11. Bd3 {[%clk 0:02:56.4]}
11... c6 {[%clk 0:02:48.8]} 12. O-O {[%clk 0:02:55]} 12... Bd6 {[%clk
0:02:39.2]} 13. Ne2 {[%clk 0:02:06.8]} 13... Bg4 {[%clk 0:02:35.4]} 14. Nd2
{[%clk 0:02:03.1]} 14... Bxe2 {[%clk 0:02:26.2]} 15. Bxe2 {[%clk 0:02:01.8]}
15... Nd7 {[%clk 0:02:25.9]} 16. Nf3 {[%clk 0:02:00.3]} 16... Qe7 {[%clk
0:02:21.2]} 17. b4 {[%clk 0:01:58.6]} 17... Nf6 {[%clk 0:02:19.7]} 18. b5 {[%clk
0:01:57.5]} 18... c5 {[%clk 0:02:14.6]} 19. dxc5 {[%clk 0:01:56.2]} 19... Bxc5
{[%clk 0:02:14.9]} 20. Qb2 {[%clk 0:01:44.5]} 20... Ne4 {[%clk 0:02:10.4]} 21.
Rfd1 {[%clk 0:01:42.6]} 21... Rac8 {[%clk 0:02:06.1]} 22. Nd4 {[%clk 0:01:36.1]}
22... Qf6 {[%clk 0:02:02.5]} 23. Bf3 {[%clk 0:01:31.4]} 23... Bb6 {[%clk
0:01:54.2]} 24. Rac1 {[%clk 0:01:25.6]} 24... Rxc1 {[%clk 0:01:38.6]} 25. Qxc1
{[%clk 0:01:24.9]} 25... g6 {[%clk 0:01:30.6]} 26. Qc2 {[%clk 0:01:21.1]} 26...
Ng5 {[%clk 0:01:27]} 27. Be2 {[%clk 0:01:18]} 27... h5 {[%clk 0:01:26.8]} 28.
Qb3 {[%clk 0:01:05.5]} 28... h4 {[%clk 0:01:23.7]} 29. h3 {[%clk 0:01:05.9]}
29... Ne4 {[%clk 0:01:14.4]} 30. Bf3 {[%clk 0:01:04.5]} 30... Bc7 {[%clk
0:01:11.7]} 31. Bxe4 {[%clk 0:00:57.5]} 31... dxe4 {[%clk 0:01:11.4]} 32. Ne2
{[%clk 0:00:44.4]} 32... Rxd1+ {[%clk 0:01:09.3]} 33. Qxd1 {[%clk 0:00:44]}
33... Qe5 {[%clk 0:01:09.4]} 34. Nf4 {[%clk 0:00:30.5]} 34... Qxb5 {[%clk
0:01:04.7]} 35. Nd5 {[%clk 0:00:29.4]} 35... Be5 {[%clk 0:01:03.9]} 36. a4
{[%clk 0:00:19.2]} 36... Qc4 {[%clk 0:00:57]} 37. Kh1 {[%clk 0:00:18.3]} 37...
Kg7 {[%clk 0:00:55.1]} 38. Ne7 {[%clk 0:00:10.7]} 38... Qd3 {[%clk 0:00:45.8]}
39. Qb1 {[%clk 0:00:07.5]} 39... Qxb1# {[%clk 0:00:45.5]} 0-1

[Event "Late-Titled-Tuesday-Blitz-January-23-2024"]
[Site "Chess.com"]
[Date "2024.01.23"]
[Round "1"]
[White "LiemLe"]
[Black "traviscottofficial"]
[Result "1-0"]
[WhiteElo "3111"]
[BlackElo "2540"]
[TimeControl "180+1"]
[EndTime "14:06:50 PST"]
[Termination "LiemLe won by resignation"]

1. Nf3 {[%clk 0:03:00.9]} 1... Nf6 {[%clk 0:02:59.2]} 2. c4 {[%clk 0:02:59.8]}
2... g6 {[%clk 0:02:58.5]} 3. Nc3 {[%clk 0:02:58.9]} 3... Bg7 {[%clk 0:02:57.9]}
4. e4 {[%clk 0:02:58.4]} 4... O-O {[%clk 0:02:57.5]} 5. d4 {[%clk 0:02:58.6]}
5... d6 {[%clk 0:02:57.1]} 6. Be2 {[%clk 0:02:58]} 6... e5 {[%clk 0:02:57.7]} 7.
O-O {[%clk 0:02:58.1]} 7... Nc6 {[%clk 0:02:57.6]} 8. Be3 {[%clk 0:02:57.1]}
8... Ng4 {[%clk 0:02:55.4]} 9. Bg5 {[%clk 0:02:57.3]} 9... f6 {[%clk 0:02:55.4]}
10. Bc1 {[%clk 0:02:57]} 10... f5 {[%clk 0:02:54.2]} 11. dxe5 {[%clk 0:02:52.8]}
11... Ngxe5 {[%clk 0:02:50.5]} 12. exf5 {[%clk 0:02:48.9]} 12... Bxf5 {[%clk
0:02:48.2]} 13. Be3 {[%clk 0:02:40]} 13... Qd7 {[%clk 0:02:35.1]} 14. Nxe5
{[%clk 0:02:37.6]} 14... Bxe5 {[%clk 0:02:31]} 15. Qd2 {[%clk 0:02:33]} 15...
Bg4 {[%clk 0:02:02.2]} 16. f3 {[%clk 0:02:17.1]} 16... Be6 {[%clk 0:02:00.1]}
17. f4 {[%clk 0:02:13.7]} 17... Bg7 {[%clk 0:01:58]} 18. Rae1 {[%clk 0:02:07]}
18... Bg4 {[%clk 0:01:50.9]} 19. Nd5 {[%clk 0:02:03.1]} 19... Bxe2 {[%clk
0:01:34.2]} 20. Rxe2 {[%clk 0:02:04]} 20... Rf7 {[%clk 0:01:33]} 21. Rfe1 {[%clk
0:02:01.2]} 21... Raf8 {[%clk 0:01:29.5]} 22. Bf2 {[%clk 0:01:58.1]} 22... Kh8
{[%clk 0:01:24.5]} 23. b4 {[%clk 0:01:57.8]} 23... b6 {[%clk 0:01:00.2]} 24. h3
{[%clk 0:01:46.9]} 24... a5 {[%clk 0:00:45.5]} 25. b5 {[%clk 0:01:44.7]} 25...
Nb4 {[%clk 0:00:45.3]} 26. Re7 {[%clk 0:01:25.6]} 26... Qd8 {[%clk 0:00:40.6]}
27. Bh4 {[%clk 0:01:24.4]} 27... Qc8 {[%clk 0:00:27.6]} 28. Rxf7 {[%clk
0:01:18.4]} 28... Rxf7 {[%clk 0:00:28.1]} 29. Ne7 {[%clk 0:01:19.1]} 29... Qf8
{[%clk 0:00:26.9]} 30. f5 {[%clk 0:01:08.4]} 30... gxf5 {[%clk 0:00:21]} 31. a3
{[%clk 0:01:08.7]} 31... Be5 {[%clk 0:00:18.7]} 32. axb4 {[%clk 0:01:04.1]}
32... axb4 {[%clk 0:00:19.2]} 33. Nd5 {[%clk 0:00:58.8]} 33... b3 {[%clk
0:00:18.1]} 34. Rb1 {[%clk 0:00:39.8]} 34... b2 {[%clk 0:00:17.4]} 35. Rxb2
{[%clk 0:00:40.2]} 35... Bxb2 {[%clk 0:00:17.7]} 36. Qxb2+ {[%clk 0:00:41.1]}
36... Kg8 {[%clk 0:00:13.2]} 37. Nf6+ {[%clk 0:00:40.4]} 37... Kh8 {[%clk
0:00:12.9]} 38. Nd7+ {[%clk 0:00:35.7]} 38... Qg7 {[%clk 0:00:13.1]} 39. Bf6
{[%clk 0:00:35.8]} 1-0

[Event "Late-Titled-Tuesday-Blitz-January-23-2024"]
[Site "Chess.com"]
[Date "2024.01.23"]
[Round "1"]
[White "Andrii_Prydun"]
[Black "Harry_Rakkel"]
[Result "0-1"]
[WhiteElo "2383"]
[BlackElo "2692"]
[TimeControl "180+1"]
[EndTime "14:06:53 PST"]
[Termination "Harry_Rakkel won on time"]

1. e4 {[%clk 0:03:00.2]} 1... c6 {[%clk 0:02:59.4]} 2. d4 {[%clk 0:02:59.9]}
2... d5 {[%clk 0:02:59.1]} 3. e5 {[%clk 0:03:00.4]} 3... Bf5 {[%clk 0:02:58.8]}
4. h4 {[%clk 0:03:00.5]} 4... Qb6 {[%clk 0:02:58]} 5. Nc3 {[%clk 0:02:57.8]}
5... h6 {[%clk 0:02:52.2]} 6. Nf3 {[%clk 0:02:55.6]} 6... e6 {[%clk 0:02:46.2]}
7. Bd3 {[%clk 0:02:55.7]} 7... Ne7 {[%clk 0:02:42.9]} 8. Ne2 {[%clk 0:02:50.7]}
8... a5 {[%clk 0:02:38.8]} 9. Rb1 {[%clk 0:02:40.9]} 9... Bxd3 {[%clk
0:02:36.7]} 10. cxd3 {[%clk 0:02:40.7]} 10... Na6 {[%clk 0:02:32.6]} 11. g4
{[%clk 0:02:38.3]} 11... Nc8 {[%clk 0:02:25.3]} 12. h5 {[%clk 0:02:37.6]} 12...
Be7 {[%clk 0:02:23.5]} 13. g5 {[%clk 0:02:37.2]} 13... hxg5 {[%clk 0:02:20.5]}
14. Bxg5 {[%clk 0:02:38.1]} 14... Bxg5 {[%clk 0:02:08.5]} 15. Nxg5 {[%clk
0:02:37.5]} 15... Ne7 {[%clk 0:02:08.3]} 16. Nf3 {[%clk 0:02:17.8]} 16... Nf5
{[%clk 0:01:57.8]} 17. Kf1 {[%clk 0:02:16.3]} 17... Nc7 {[%clk 0:01:54.9]} 18.
Qd2 {[%clk 0:02:15.8]} 18... Qb5 {[%clk 0:01:42.6]} 19. b3 {[%clk 0:02:10.7]}
19... Qb4 {[%clk 0:01:37.1]} 20. Qc1 {[%clk 0:02:08.5]} 20... Nb5 {[%clk
0:01:35]} 21. Qf4 {[%clk 0:02:01.3]} 21... a4 {[%clk 0:01:32.7]} 22. Ng3 {[%clk
0:01:25]} 22... Nfxd4 {[%clk 0:01:14.9]} 23. Ng5 {[%clk 0:00:57.4]} 23... Qe7
{[%clk 0:01:11.2]} 24. bxa4 {[%clk 0:00:42]} 24... Rxa4 {[%clk 0:01:10.2]} 25.
Ne2 {[%clk 0:00:42.1]} 25... Rxa2 {[%clk 0:00:30.9]} 26. Nxd4 {[%clk 0:00:22.5]}
26... Nxd4 {[%clk 0:00:31.8]} 27. Rg1 {[%clk 0:00:07.3]} 27... c5 {[%clk
0:00:30.1]} 28. Nf3 {[%clk 0:00:03.7]} 28... Ne2 {[%clk 0:00:27.7]} 29. Qe3
{[%clk 0:00:01]} 29... Nxg1 {[%clk 0:00:26.9]} 0-1

[Event "Late-Titled-Tuesday-Blitz-January-23-2024"]
[Site "Chess.com"]
[Date "2024.01.23"]
[Round "1"]
[White "IndianSchoolOfSuffering"]
[Black "GMKrikor"]
[Result "0-1"]
[WhiteElo "2441"]
[BlackElo "2789"]
[TimeControl "180+1"]
[EndTime "14:06:54 PST"]
[Termination "GMKrikor won by resignation"]

1. Nf3 {[%clk 0:02:59.7]} 1... d5 {[%clk 0:02:59.8]} 2. d4 {[%clk 0:02:59]} 2...
Bf5 {[%clk 0:02:57.6]} 3. c4 {[%clk 0:02:58.3]} 3... e6 {[%clk 0:02:57.9]} 4.
Qb3 {[%clk 0:02:57.7]} 4... Nc6 {[%clk 0:02:57]} 5. Nc3 {[%clk 0:02:53.5]} 5...
Nb4 {[%clk 0:02:43.2]} 6. e4 {[%clk 0:02:38.7]} 6... dxe4 {[%clk 0:02:42.3]} 7.
Ne5 {[%clk 0:02:32.8]} 7... Qxd4 {[%clk 0:02:32.4]} 8. Bf4 {[%clk 0:02:27.9]}
8... e3 {[%clk 0:01:55.6]} 9. fxe3 {[%clk 0:02:23.8]} 9... Qb6 {[%clk
0:01:55.6]} 10. Rc1 {[%clk 0:02:13.1]} 10... Nf6 {[%clk 0:01:45.7]} 11. Be2
{[%clk 0:02:12.2]} 11... Bd6 {[%clk 0:01:39.2]} 12. Nb5 {[%clk 0:01:58.8]} 12...
O-O {[%clk 0:01:16.6]} 13. O-O {[%clk 0:01:47.5]} 13... Bc5 {[%clk 0:01:09.8]}
14. a3 {[%clk 0:01:30.2]} 14... Nc6 {[%clk 0:01:06.4]} 15. Qc3 {[%clk
0:01:11.4]} 15... Nxe5 {[%clk 0:00:58.7]} 16. Qxe5 {[%clk 0:01:10.5]} 16... Ne4
{[%clk 0:00:48.5]} 17. Qxc7 {[%clk 0:00:55.3]} 17... Bxe3+ {[%clk 0:00:47.5]}
18. Kh1 {[%clk 0:00:53]} 18... Bxc1 {[%clk 0:00:28.2]} 19. Qxb6 {[%clk
0:00:47.8]} 19... axb6 {[%clk 0:00:28.1]} 20. Rxc1 {[%clk 0:00:47.7]} 20... Nc5
{[%clk 0:00:24.3]} 21. b4 {[%clk 0:00:43.7]} 21... Nd3 {[%clk 0:00:22.6]} 22.
Bxd3 {[%clk 0:00:43]} 22... Bxd3 {[%clk 0:00:23.5]} 23. Be3 {[%clk 0:00:40.1]}
23... Rfc8 {[%clk 0:00:20.3]} 24. Nd6 {[%clk 0:00:37.9]} 24... Rc6 {[%clk
0:00:19.2]} 25. c5 {[%clk 0:00:36.3]} 25... bxc5 {[%clk 0:00:19.1]} 26. bxc5
{[%clk 0:00:36.5]} 26... b6 {[%clk 0:00:18]} 27. Rd1 {[%clk 0:00:36.4]} 27...
bxc5 {[%clk 0:00:14.8]} 28. Rxd3 {[%clk 0:00:34.6]} 28... Rd8 {[%clk 0:00:13]}
29. Bf4 {[%clk 0:00:30.7]} 29... c4 {[%clk 0:00:12.8]} 30. Rd1 {[%clk
0:00:28.5]} 30... f6 {[%clk 0:00:11.6]} 0-1

[Event "Late-Titled-Tuesday-Blitz-January-23-2024"]
[Site "Chess.com"]
[Date "2024.01.23"]
[Round "1"]
[White "N18player"]
[Black "Sebastian"]
[Result "0-1"]
[WhiteElo "2515"]
[BlackElo "3005"]
[TimeControl "180+1"]
[EndTime "14:06:55 PST"]
[Termination "Sebastian won on time"]

1. Nf3 {[%clk 0:01:22]} 1... Nf6 {[%clk 0:02:42.8]} 2. c4 {[%clk 0:01:17]} 2...
e6 {[%clk 0:02:42.2]} 3. Nc3 {[%clk 0:01:16.9]} 3... d5 {[%clk 0:02:42.3]} 4. e3
{[%clk 0:01:16.9]} 4... b6 {[%clk 0:02:41.1]} 5. b3 {[%clk 0:01:17.2]} 5... Bb7
{[%clk 0:02:41.1]} 6. cxd5 {[%clk 0:01:17.7]} 6... exd5 {[%clk 0:02:40.6]} 7.
Bb2 {[%clk 0:01:17.9]} 7... Nbd7 {[%clk 0:02:40.6]} 8. d4 {[%clk 0:01:18.3]}
8... Bd6 {[%clk 0:02:38.9]} 9. Bd3 {[%clk 0:01:18.4]} 9... a6 {[%clk 0:02:37.2]}
10. O-O {[%clk 0:01:18.4]} 10... Qe7 {[%clk 0:02:37.1]} 11. Ne2 {[%clk
0:01:16.8]} 11... O-O-O {[%clk 0:02:32.2]} 12. Ng3 {[%clk 0:01:12.5]} 12... g6
{[%clk 0:02:31.8]} 13. Qe2 {[%clk 0:01:08.1]} 13... a5 {[%clk 0:02:22.8]} 14. a3
{[%clk 0:01:05.8]} 14... h5 {[%clk 0:02:17.9]} 15. Rfc1 {[%clk 0:00:55.4]} 15...
h4 {[%clk 0:02:11.9]} 16. Nf1 {[%clk 0:00:55.1]} 16... Ne4 {[%clk 0:02:10.4]}
17. b4 {[%clk 0:00:53.7]} 17... a4 {[%clk 0:02:00.7]} 18. N1d2 {[%clk
0:00:27.7]} 18... g5 {[%clk 0:01:49]} 19. Bxe4 {[%clk 0:00:26.7]} 19... dxe4
{[%clk 0:01:48.7]} 20. Ne5 {[%clk 0:00:24]} 20... Nxe5 {[%clk 0:01:48.6]} 21.
dxe5 {[%clk 0:00:23.8]} 21... Bxe5 {[%clk 0:01:49.2]} 22. Nc4 {[%clk 0:00:21.8]}
22... Bxb2 {[%clk 0:01:47.6]} 23. Nxb2 {[%clk 0:00:16]} 23... h3 {[%clk
0:01:41.3]} 24. g3 {[%clk 0:00:14.6]} 24... Kb8 {[%clk 0:01:34.7]} 25. Nxa4
{[%clk 0:00:14.4]} 25... Qf6 {[%clk 0:01:26.1]} 26. Nc3 {[%clk 0:00:14.2]} 26...
Rd3 {[%clk 0:01:25]} 27. Nb5 {[%clk 0:00:14.1]} 27... Rhd8 {[%clk 0:01:15.5]}
28. Nd4 {[%clk 0:00:07.2]} 28... Rd6 {[%clk 0:00:36.3]} 29. Rd1 {[%clk
0:00:05.7]} 29... c5 {[%clk 0:00:28.2]} 30. bxc5 {[%clk 0:00:05.2]} 30... bxc5
{[%clk 0:00:29.1]} 31. Nb5 {[%clk 0:00:03.8]} 31... Rd2 {[%clk 0:00:25.6]} 32.
Nxd6 {[%clk 0:00:01.5]} 32... Rxe2 {[%clk 0:00:25]} 0-1

[Event "Late-Titled-Tuesday-Blitz-January-23-2024"]
[Site "Chess.com"]
[Date "2024.01.23"]
[Round "1"]
[White "CarrotsandPizza"]
[Black "AungTZ"]
[Result "1-0"]
[WhiteElo "2556"]
[BlackElo "2092"]
[TimeControl "180+1"]
[EndTime "14:06:58 PST"]
[Termination "CarrotsandPizza won on time"]

1. e4 {[%clk 0:02:59.7]} 1... c5 {[%clk 0:02:59]} 2. Nf3 {[%clk 0:02:59]} 2...
Nc6 {[%clk 0:02:58.9]} 3. d4 {[%clk 0:02:58.7]} 3... cxd4 {[%clk 0:02:58.9]} 4.
Nxd4 {[%clk 0:02:58.9]} 4... Nf6 {[%clk 0:02:58.9]} 5. Nc3 {[%clk 0:02:58.9]}
5... d6 {[%clk 0:02:58.8]} 6. Bc4 {[%clk 0:02:57.5]} 6... Qb6 {[%clk 0:02:57.1]}
7. Nxc6 {[%clk 0:02:56.7]} 7... bxc6 {[%clk 0:02:56.8]} 8. O-O {[%clk
0:02:56.6]} 8... e6 {[%clk 0:02:56.7]} 9. b3 {[%clk 0:02:56.2]} 9... Be7 {[%clk
0:02:56.5]} 10. Bb2 {[%clk 0:02:56.4]} 10... O-O {[%clk 0:02:56.3]} 11. Bd3
{[%clk 0:02:55.6]} 11... Qc7 {[%clk 0:02:53.2]} 12. Qe2 {[%clk 0:02:49.6]} 12...
d5 {[%clk 0:02:52.1]} 13. Rfe1 {[%clk 0:02:44.3]} 13... a5 {[%clk 0:02:48.7]}
14. e5 {[%clk 0:02:42.7]} 14... Ne8 {[%clk 0:02:47.2]} 15. Na4 {[%clk
0:02:40.6]} 15... g6 {[%clk 0:02:40.1]} 16. Rac1 {[%clk 0:02:39.7]} 16... c5
{[%clk 0:02:36.7]} 17. c4 {[%clk 0:02:32.3]} 17... d4 {[%clk 0:02:34.5]} 18.
Rcd1 {[%clk 0:02:19.5]} 18... Bb7 {[%clk 0:02:29]} 19. Bc1 {[%clk 0:02:19.7]}
19... Ng7 {[%clk 0:02:27.1]} 20. Qg4 {[%clk 0:02:09.6]} 20... Bc6 {[%clk
0:02:16.8]} 21. Be4 {[%clk 0:01:53.4]} 21... Bxe4 {[%clk 0:01:53.6]} 22. Rxe4
{[%clk 0:01:46.9]} 22... Rad8 {[%clk 0:01:52.8]} 23. Rd3 {[%clk 0:01:46.2]}
23... Nf5 {[%clk 0:01:29.5]} 24. Bd2 {[%clk 0:01:44.3]} 24... h5 {[%clk
0:01:08.2]} 25. Qe2 {[%clk 0:01:28]} 25... Kg7 {[%clk 0:01:07.8]} 26. f3 {[%clk
0:01:27.1]} 26... Rh8 {[%clk 0:01:05.2]} 27. g3 {[%clk 0:01:21.8]} 27... Ra8
{[%clk 0:00:55.3]} 28. Bc1 {[%clk 0:01:19.4]} 28... Rhc8 {[%clk 0:00:27.2]} 29.
g4 {[%clk 0:01:17]} 29... hxg4 {[%clk 0:00:25.2]} 30. fxg4 {[%clk 0:01:17]}
30... Nh4 {[%clk 0:00:23.3]} 31. Rh3 {[%clk 0:01:01.6]} 31... Qd8 {[%clk
0:00:22.4]} 32. Bd2 {[%clk 0:00:46.8]} 32... Bg5 {[%clk 0:00:19.8]} 33. Be1
{[%clk 0:00:47.1]} 33... Qe7 {[%clk 0:00:16.1]} 34. Kh1 {[%clk 0:00:43.9]} 34...
Rh8 {[%clk 0:00:15.2]} 35. Nb2 {[%clk 0:00:43.7]} 35... Rad8 {[%clk 0:00:04.7]}
36. Nd3 {[%clk 0:00:40.8]} 36... Ra8 {[%clk 0:00:02.9]} 37. Nb2 {[%clk
0:00:36.7]} 37... Rac8 {[%clk 0:00:01.6]} 38. Qd3 {[%clk 0:00:35.3]} 1-0